fUST/lending_fUST_20260214
["ID","MTS","AMOUNT","RATE_DAILY","PERIOD"]
[405349700,1771043440974,-632.05,0.00030958,5]
[405349701,1771043440983,-500.0,0.00030958,5]
[405349702,1771043440993,-845.41,0.00030958,5]
[405349703,1771043441003,-595.89,0.00030958,5]
[405349704,1771043441013,-661.4,0.00030958,5]
[405349705,1771043441022,-500.0,0.00030958,5]
[405349706,1771043441032,-500.0,0.00030958,2]
[405349707,1771043441041,-2754.01,0.00030958,5]
[405349708,1771043441051,-500.0,0.00030958,2]
[405349709,1771043441060,-420.0,0.00031215,2]
[405349710,1771043441070,-500.0,0.00031232,5]
[405349711,1771043441079,-500.0,0.00031232,2]
[405349712,1771043441088,-500.0,0.00031232,5]
[405349713,1771043441098,-632.05,0.00031232,5]
[405349714,1771043441107,-500.0,0.00031232,5]
[405349715,1771043441116,-845.41,0.00031232,5]
[405349716,1771043441126,-595.89,0.00031232,5]
[405349717,1771043441136,-661.4,0.00031232,5]
[405349718,1771043441145,-500.0,0.00031232,5]
[405349719,1771043441155,-500.0,0.00031232,2]
[405349720,1771043441165,-2754.01,0.00031232,5]
[405349721,1771043441174,-500.0,0.00031232,2]
[405349722,1771043441183,-470.54,0.00031396,10]
[405349723,1771043441193,-805.73,0.00031396,10]
[405349724,1771043441202,-185710.00764793,0.00031406,2]
[405349733,1771043446377,-5939.55030496,0.00031406,2]
[405349734,1771043446539,-317.706,0.00031406,2]
[405349735,1771043558188,-208.47961352,0.000269,2]
[405349736,1771043567836,1432.28280869,0.00027,2]
[405349739,1771044553425,5000.0,0.00023,2]
[405349740,1771044575161,1432.28280869,0.00023,2]
[405349759,1771044632837,506.33371112,0.00013699,2]
[405349786,1771044646393,-5000.0,0.00023442,2]
[405349787,1771044646402,-260.36,0.000249,2]
[405349788,1771044646413,-300.0,0.00026264,2]
[405349789,1771044646422,-1699.0597417,0.00026389,2]
[405349790,1771044646431,-218.3831514,0.00026532,2]
[405349791,1771044646440,-102.89540973,0.00026698,2]
[405349792,1771044646451,-642.88736107,0.00026698,2]
[405349793,1771044646460,-208.47961352,0.000268,2]
[405349794,1771044646469,-455.96564556,0.00029133,2]
[405349795,1771044646478,-18908.34754493,0.00029134,2]
[405349796,1771044648775,1075.70854483,0.00023,2]
[405349797,1771045339531,-1335.52237623,0.00024456,2]
[405349799,1771045578180,500.0,0.00013699,2]
[405349822,1771045832579,-1335.52237623,0.00024456,2]
[405349824,1771045832588,-85.73839337,0.00027013,2]
[405349875,1771045840897,-3529.15298139,0.00027013,2]
[405349876,1771045840952,-671.77936835,0.00027013,2]
[405349886,1771045846730,-549.94203425,0.00027013,2]
[405350314,1771046749580,168.98474853,0.00023,2]
[405350316,1771046757872,218.4685409,0.00023,2]
[405350324,1771046893165,1933.71102165,0.0001,2]
[405350325,1771046901699,290.23209798,0.0001,2]
[405350326,1771046907316,373.8824408,0.00017,2]
[405350327,1771046911562,1000.0,0.0001,2]
[405350328,1771046914924,7222.41289044,0.0002,2]
[405350329,1771046915941,203.59529535,0.0002,2]
[405350330,1771046916942,1037.94439236,0.000225,2]
[405350331,1771046917295,4332.79720488,0.000215,2]
[405350332,1771046918619,3456.41661377,0.0001,2]
[405350333,1771046920835,506.42461731,0.0002,2]
[405350334,1771046921155,31248.94002386,0.00021,2]
[405350471,1771047037727,-2002.18581178,0.0002465,2]
[405350483,1771047037839,-1887.78630253,0.0002465,2]
[405350485,1771047037848,-215.39167396,0.00026766,2]
[405350487,1771047037858,-2825.86369509,0.00026767,2]
[405350601,1771047040023,-380.36253887,0.00026767,2]
[405350605,1771047044902,-7498.58033745,0.00026767,2]
[405350609,1771047045848,-5581.51030572,0.00026767,2]
[405350738,1771048240308,-233.23211675,0.00024094,2]
[405350739,1771048240317,-216.41081111,0.00024337,2]
[405350740,1771048240327,-1005.86351196,0.00024435,2]
[405350741,1771048240336,-1167.352144,0.00024613,2]
[405350742,1771048240347,-379.69575872,0.00024992,2]
[405350743,1771048240356,-562.42754034,0.00024992,2]
[405350744,1771048240365,-1012.36957261,0.00024992,2]
[405350745,1771048240374,-1797.96836096,0.00024992,2]
[405350746,1771048240383,-1740.71990509,0.00025361,2]
[405350751,1771048245956,-319.16691606,0.00024435,7]
[405350752,1771048245966,-2031.17876901,0.00025361,2]
[405350753,1771048245975,-197.05064371,0.0002546,2]
[405350754,1771048245985,-354.33646752,0.0002546,2]
[405350755,1771048245994,-289.86301069,0.00025721,7]
[405350756,1771048246003,-215.39167396,0.00025848,2]
[405350757,1771048246012,-500.0,0.00025848,2]
[405350758,1771048246021,-569.00737656,0.00025848,2]
[405350759,1771048246030,-500.0,0.00025848,2]
[405350760,1771048246040,-2374.67811075,0.00025849,2]
[405350761,1771048246051,-725.54003136,0.00025849,2]
[405350773,1771048911295,338.25185563,0.00022556,2]
[405350774,1771048914326,162.52038117,0.00022978,2]
[405350775,1771048917309,292.5366861,0.00022978,2]
[405350776,1771048919832,519.54515451,0.00022978,2]
[405350779,1771049379749,731.739,0.00030137,120]
[405350780,1771049412235,1999.7,0.00030137,120]
[405350800,1771049431989,-4012.7512768,0.00024093,2]
[405350801,1771049431998,-210.78094299,0.00024125,2]
[405350802,1771049432008,-300.4525421,0.00024157,2]
[405350804,1771049433090,178.98103829,0.00022949,2]
[405350807,1771049438117,572.16658321,0.00022949,2]
[405350816,1771049815302,257.88070174,0.00022949,2]
[405350821,1771049853954,135163.0,0.00030137,120]
[405350823,1771050027468,180.32312792,0.00021887,2]
[405350824,1771050030179,283.4197817,0.00022949,2]
[405350825,1771050033330,323.58441362,0.00022949,2]
[405350829,1771050234359,3817.55497742,0.00023,2]
[405350830,1771050285674,4601.61151574,0.00023,2]
[405350835,1771050360994,6800.0,0.00023,2]
[405350837,1771050394527,502.04867201,0.00013699,2]
[405350855,1771050632156,-150.0,0.00023752,2]
[405350857,1771050632167,-2961.5777176,0.00023931,2]
[405350859,1771050632177,-300.0,0.00024649,2]
[405350861,1771050632186,-300.0,0.00024649,2]
[405350863,1771050632197,-300.0,0.00024649,2]
[405350865,1771050632206,-300.0,0.00024649,2]
[405350867,1771050632216,-300.0,0.00024649,2]
[405350869,1771050632226,-1200.0,0.00024649,2]
[405350871,1771050632235,-269.68815541,0.0002465,2]
[405350877,1771050632284,-81241.31162078,0.0002465,2]
[405350879,1771050632294,-905.89,0.0002477,10]
[405350881,1771050632303,-754.91,0.0002477,10]
[405350883,1771050632312,-4588.58745634,0.00024774,2]
[405350885,1771050632322,-500.0,0.0002478,2]
[405350887,1771050632331,-500.0,0.0002478,2]
[405350889,1771050632340,-265.67462239,0.0002478,2]
[405350891,1771050632350,-500.0,0.0002478,2]
[405350893,1771050632360,-500.0,0.0002478,2]
[405350895,1771050632370,-500.0,0.0002478,2]
[405350897,1771050632379,-500.0,0.0002478,2]
[405350899,1771050632388,-500.0,0.0002478,2]
[405350901,1771050632398,-500.0,0.0002478,2]
[405350903,1771050632407,-500.0,0.0002478,2]
[405350905,1771050632416,-500.0,0.0002478,2]
[405350907,1771050632425,-500.0,0.0002478,2]
[405350909,1771050632434,-500.0,0.0002478,2]
[405350911,1771050632444,-500.0,0.0002478,2]
[405350913,1771050632454,-500.0,0.0002478,2]
[405350915,1771050632463,-500.0,0.0002478,2]
[405350917,1771050632473,-261.06358107,0.0002478,2]
[405350919,1771050632482,-500.0,0.0002478,2]
[405350921,1771050632492,-500.0,0.0002478,2]
[405350923,1771050632501,-500.0,0.0002478,2]
[405350925,1771050632511,-500.0,0.0002478,2]
[405350927,1771050632521,-500.0,0.0002478,2]
[405350929,1771050632530,-500.0,0.0002478,2]
[405350931,1771050632540,-500.0,0.0002478,2]
[405350933,1771050632549,-500.0,0.0002478,2]
[405350935,1771050632559,-500.0,0.0002478,2]
[405350937,1771050632568,-500.0,0.0002478,2]
[405350939,1771050632579,-500.0,0.0002478,2]
[405350941,1771050632589,-500.0,0.0002478,2]
[405350943,1771050632599,-500.0,0.0002478,2]
[405350945,1771050632610,-500.0,0.0002478,2]
[405350947,1771050632619,-500.0,0.0002478,2]
[405350949,1771050632629,-500.0,0.0002478,2]
[405350951,1771050632639,-500.0,0.0002478,2]
[405350953,1771050632648,-500.0,0.0002478,2]
[405350955,1771050632657,-293.77885736,0.0002478,2]
[405350957,1771050632668,-515.92437871,0.0002478,2]
[405350959,1771050632678,-500.0,0.0002478,2]
[405350961,1771050632688,-500.0,0.0002478,2]
[405350963,1771050632698,-500.0,0.0002478,2]
[405350966,1771050632707,-500.0,0.0002478,2]
[405350968,1771050632717,-500.0,0.0002478,2]
[405350969,1771050632726,-500.0,0.0002478,2]
[405350972,1771050632736,-500.0,0.0002478,2]
[405350974,1771050632746,-500.0,0.0002478,2]
[405350975,1771050632755,-500.0,0.0002478,2]
[405350978,1771050632766,-500.0,0.0002478,2]
[405350980,1771050632775,-157.129,0.00024781,2]
[405350982,1771050632785,-500.0,0.00024784,2]
[405350983,1771050632795,-500.0,0.00024784,2]
[405350985,1771050632804,-500.0,0.00024784,2]
[405350987,1771050632814,-34677.9281922,0.00024785,2]
[405350989,1771050632827,-1312.37317768,0.00024799,2]
[405350991,1771050632839,-204.77,0.000248,7]
[405350994,1771050632851,-37149.82355257,0.000248,2]
[405351167,1771050638358,-163.121759,0.0002465,2]
[405351168,1771050638368,-500.0,0.0002478,2]
[405351169,1771050638379,-76966.40644743,0.000248,2]
[405351170,1771050638389,-743.19,0.000248,14]
[405351171,1771050638399,-188.0900042,0.00024951,2]
[405351172,1771050638409,-7824.03,0.0002499,2]
[405351173,1771050638420,-510.3247,0.00025752,2]
[405351174,1771050638430,-510.3247,0.00025752,3]
[405351175,1771050638441,-510.3206,0.00025752,5]
[405351176,1771050638451,-178.14,0.00025752,2]
[405351177,1771050638462,-282.17078049,0.00025752,2]
[405351178,1771050638472,-448.75,0.00025838,2]
[405351179,1771050638483,-510.3247,0.00025838,2]
[405351180,1771050638493,-337.4253,0.00025838,3]
[405351181,1771050638505,-629.09,0.00025838,10]
[405351182,1771050638516,-294.48,0.00025839,3]
[405351183,1771050638527,-883.49,0.00025839,3]
[405351184,1771050638538,-500.0,0.00025848,2]
[405351185,1771050638548,-174.55473531,0.00025848,2]
[405351186,1771050638560,-188.09430395,0.00025848,2]
[405351187,1771050638571,-364.18581351,0.00025848,2]
[405351188,1771050638582,-500.0,0.00025848,2]
[405351189,1771050638593,-500.0,0.00025848,2]
[405351190,1771050638605,-22197.32955569,0.00025849,2]
[405351191,1771050638617,-201.76350581,0.00025849,2]
[405351192,1771050638627,-15202.69797262,0.00025999,2]
[405351193,1771050638638,-254.72333741,0.00026067,2]
[405351194,1771050638650,-338.56974711,0.00026124,2]
[405351195,1771050638661,-655.53446432,0.00026655,2]
[405351196,1771050638673,-420.0,0.00026713,2]
[405351197,1771050638683,-337.0,0.00026713,2]
[405351198,1771050638695,-307.0,0.00026713,2]
[405351199,1771050638705,-302.0,0.00026713,2]
[405351200,1771050638716,-363.17431046,0.00026752,2]
[405351201,1771050638726,-1200.0,0.00026834,2]
[405351202,1771050638736,-510.3247,0.00026926,2]
[405351203,1771050638747,-508.4753,0.00026926,3]
[405351204,1771050638758,-500.0,0.00027182,7]
[405351205,1771050638768,-588.96,0.00027209,3]
[405351206,1771050638778,-527.70901,0.00027311,2]
[405351207,1771050638789,-339.42873433,0.00027338,7]
[405351208,1771050638799,-601.29987087,0.0002754,2]
[405351209,1771050638810,-657.1976245,0.0002786,7]
[405351210,1771050638821,-114116.23,0.000279,2]
[405351211,1771050638832,-743.19,0.000279,14]
[405351212,1771050638842,-93064.46546838,0.0002799,2]
[405351213,1771050638853,-500.0,0.0002802,7]
[405351214,1771050638865,-363.92175398,0.00028092,7]
[405351215,1771050638875,-500.0,0.00028095,2]
[405351216,1771050638887,-1164.22920862,0.00028099,2]
[405351217,1771050638898,-644.99757537,0.00028142,2]
[405351218,1771050638909,-527.70901,0.00028461,2]
[405351219,1771050638920,-204.77,0.000286,7]
[405351220,1771050638930,-500.0,0.00028753,7]
[405351221,1771050638941,-743.00766454,0.00028907,2]
[405351222,1771050638952,-828.94059769,0.00029329,7]
[405351223,1771050638962,-303.0,0.00029555,2]
[405351224,1771050638973,-527.70901,0.00029611,2]
[405351225,1771050638984,-92045.77993862,0.000297,2]
[405351226,1771050638994,-811.0,0.0002971,10]
[405351227,1771050639006,-306.0,0.0002971,10]
[405351228,1771050639016,-250.0,0.00029835,2]
[405351229,1771050639028,-261.18649257,0.00029835,2]
[405351230,1771050639038,-500.0,0.00029835,2]
[405351231,1771050639199,-170.8169302,0.00029835,2]
[405351232,1771050639216,-260.22157162,0.00029835,2]
[405351233,1771050639229,-500.0,0.00029835,2]
[405351234,1771050639239,-500.0,0.00029835,2]
[405351235,1771050639249,-500.0,0.00029835,2]
[405351236,1771050639258,-500.0,0.00029835,2]
[405351237,1771050639268,-500.0,0.00029835,2]
[405351238,1771050639277,-250.0,0.00029835,2]
[405351239,1771050639291,-250.0,0.00029835,2]
[405351240,1771050639307,-500.0,0.00029835,2]
[405351241,1771050639316,-250.0,0.00029835,2]
[405351242,1771050639326,-250.0,0.00029835,2]
[405351243,1771050639336,-250.0,0.00029835,2]
[405351244,1771050639346,-250.0,0.00029835,2]
[405351245,1771050639356,-500.0,0.00029835,2]
[405351246,1771050639366,-250.0,0.00029835,2]
[405351247,1771050639376,-500.0,0.00029835,2]
[405351248,1771050639386,-500.0,0.00029835,2]
[405351249,1771050639396,-250.0,0.00029835,2]
[405351250,1771050639406,-500.0,0.00029835,2]
[405351251,1771050639415,-250.0,0.00029835,2]
[405351252,1771050639426,-521.2716098,0.00029835,2]
[405351253,1771050639435,-250.0,0.00029835,2]
[405351254,1771050639445,-195.55082165,0.00029835,2]
[405351255,1771050639459,-500.0,0.00029835,2]
[405351256,1771050639469,-500.0,0.00029835,2]
[405351257,1771050639479,-500.0,0.00029835,2]
[405351258,1771050639488,-500.0,0.00029835,2]
[405351259,1771050639499,-500.0,0.00029835,2]
[405351260,1771050639508,-323.66137552,0.00029835,2]
[405351261,1771050639518,-250.0,0.00029835,2]
[405351262,1771050639528,-250.0,0.00029835,2]
[405351263,1771050639537,-250.0,0.00029835,2]
[405351264,1771050639547,-284.16767852,0.00029835,2]
[405351265,1771050639557,-503.23969026,0.0003,2]
[405351266,1771050639567,-2000.0,0.0003,7]
[405351267,1771050639577,-8079.5130591,0.00030002,2]
[405351268,1771050639586,-500.0,0.00030136,5]
[405351269,1771050639596,-500.0,0.00030136,2]
[405351270,1771050639606,-425.42205703,0.00030136,2]
[405351271,1771050639616,-523.61,0.00030136,5]
[405351272,1771050639626,-500.0,0.00030136,5]
[405351273,1771050639636,-500.0,0.00030136,5]
[405351274,1771050639646,-500.0,0.00030136,5]
[405351275,1771050639656,-500.0,0.00030136,5]
[405351276,1771050639666,-500.0,0.00030136,5]
[405351277,1771050639676,-500.0,0.00030136,5]
[405351278,1771050639686,-500.0,0.00030136,5]
[405351279,1771050639696,-503.39737792,0.00030136,5]
[405351280,1771050639706,-669.29,0.00030136,5]
[405351281,1771050639716,-500.0,0.00030136,5]
[405351282,1771050639727,-505.25013873,0.00030136,2]
[405351283,1771050639736,-500.0,0.00030136,5]
[405351284,1771050639746,-500.0,0.00030136,5]
[405351285,1771050639756,-500.0,0.00030136,5]
[405351286,1771050639765,-500.38,0.00030136,5]
[405351287,1771050639775,-643.2,0.00030136,2]
[405351288,1771050639784,-2180.26,0.00030136,5]
[405351289,1771050639794,-160.0,0.00030275,3]
[405351290,1771050639804,-500.0,0.00030409,2]
[405351291,1771050639814,-1129.31043206,0.00030409,2]
[405351292,1771050639823,-500.0,0.0003041,5]
[405351293,1771050639833,-500.0,0.0003041,2]
[405351294,1771050639842,-523.61,0.0003041,5]
[405351295,1771050639852,-669.29,0.0003041,5]
[405351296,1771050639862,-500.0,0.0003041,5]
[405351297,1771050639872,-500.0,0.0003041,5]
[405351298,1771050639882,-500.0,0.0003041,5]
[405351300,1771050639891,-500.0,0.0003041,5]
[405351302,1771050639901,-500.38,0.0003041,5]
[405351304,1771050639911,-2180.26,0.0003041,5]
[405351306,1771050639921,-500.0,0.00030684,5]
[405351308,1771050639931,-500.0,0.00030684,2]
[405351309,1771050639940,-523.61,0.00030684,5]
[405351310,1771050639950,-669.29,0.00030684,5]
[405351311,1771050639959,-500.0,0.00030684,5]
[405351312,1771050639969,-547.35462357,0.00030684,5]
[405351313,1771050639980,-500.0,0.00030684,5]
[405351314,1771050639990,-500.0,0.00030684,5]
[405351315,1771050639999,-500.38,0.00030684,5]
[405351316,1771050640009,-2180.26,0.00030684,5]
[405351317,1771050640018,-527.70901,0.0003076,2]
[405351318,1771050640028,-114116.23,0.000308,2]
[405351319,1771050640037,-743.19,0.000308,14]
[405351320,1771050640047,-2000.0,0.00030909,7]
[405351321,1771050640057,-500.0,0.00030958,5]
[405351322,1771050640066,-500.0,0.00030958,2]
[405351323,1771050640076,-523.61,0.00030958,5]
[405351324,1771050640085,-669.29,0.00030958,5]
[405351325,1771050640094,-500.0,0.00030958,5]
[405351326,1771050640105,-500.0,0.00030958,5]
[405351328,1771050640115,-500.0,0.00030958,5]
[405351330,1771050640124,-500.38,0.00030958,5]
[405351332,1771050640134,-2180.26,0.00030958,5]
[405351334,1771050640143,-300.0,0.00031,2]
[405351336,1771050640154,-800.0,0.00031144,2]
[405351337,1771050640171,-800.0,0.00031174,2]
[405351338,1771050640181,-602.45844016,0.00031231,2]
[405351339,1771050640191,-485.80150007,0.00031232,5]
[405351340,1771050640202,-500.0,0.00031232,2]
[405351341,1771050640212,-523.61,0.00031232,5]
[405351342,1771050640222,-669.29,0.00031232,5]
[405351343,1771050640233,-500.0,0.00031232,5]
[405351344,1771050640242,-500.0,0.00031232,5]
[405351345,1771050640252,-430.01,0.00031232,5]
[405351346,1771050640261,-500.38,0.00031232,5]
[405351348,1771050640271,-2180.26,0.00031232,5]
[405351349,1771050640280,-888.43613452,0.00031284,2]
[405351351,1771050640290,-509.33992798,0.00031406,11]
[405351352,1771050640302,-479.4,0.000315,10]
[405351353,1771050640312,-229.38,0.000315,7]
[405351354,1771050640321,-1026.89526679,0.000315,2]
[405351355,1771050640330,-1026.89526679,0.000315,2]
[405351356,1771050640339,-1026.89526679,0.000315,2]
[405351357,1771050640349,-1026.89526679,0.000315,2]
[405351358,1771050640359,-10154.14395328,0.00031504,10]
[405351359,1771050640369,-37083.62189129,0.00031505,10]
[405351360,1771050640384,-916.37810871,0.00031505,10]
[405351361,1771050640394,-447.74919411,0.00031506,2]
[405351362,1771050640629,-607.5,0.0003136,30]
[405351363,1771050640639,-52.25080589,0.00031506,2]
[405351364,1771050640649,-523.61,0.00031506,5]
[405351365,1771050640658,-669.29,0.00031506,5]
[405351366,1771050640667,-500.0,0.00031506,5]
[405351367,1771050640677,-500.0,0.00031506,5]
[405351368,1771050640686,-500.38,0.00031506,5]
[405351369,1771050640694,-2180.26,0.00031506,5]
[405351370,1771050640704,-500.0,0.0003178,2]
[405351371,1771050640713,-523.61,0.0003178,5]
[405351372,1771050640722,-669.29,0.0003178,5]
[405351373,1771050640731,-500.0,0.0003178,5]
[405351374,1771050640741,-500.0,0.0003178,5]
[405351375,1771050640750,-500.38,0.0003178,5]
[405351376,1771050640759,-2180.26,0.0003178,5]
[405351377,1771050640768,-204.77,0.000318,7]
[405351378,1771050640778,-2000.0,0.00031818,7]
[405351379,1771050640787,-168.0,0.00031902,2]
[405351380,1771050640797,-527.70901,0.0003191,2]
[405351381,1771050640806,-168.0,0.00031941,2]
[405351382,1771050640815,-65006.68532675,0.00032,2]
[405351383,1771050640825,-2000.0,0.00032,30]
[405351384,1771050640834,-10771.615011,0.00032,120]
[405351385,1771050640843,-1240.91,0.00032,2]
[405351386,1771050640851,-198.92693578,0.00032022,56]
[405351387,1771050640861,-600.0,0.00032033,30]
[405351388,1771050640870,-500.0,0.00032054,2]
[405351389,1771050640879,-523.61,0.00032054,5]
[405351390,1771050640888,-296.04,0.00032054,2]
[405351391,1771050640897,-669.29,0.00032054,5]
[405351392,1771050640906,-500.0,0.00032054,5]
[405351393,1771050640919,-500.0,0.00032054,5]
[405351394,1771050640928,-500.38,0.00032054,5]
[405351395,1771050640937,-2180.26,0.00032054,5]
[405351396,1771050640946,-596.78080735,0.00032129,48]
[405351397,1771050640956,-160.0,0.00032172,4]
[405351398,1771050640965,-160.0,0.00032172,5]
[405351399,1771050640974,-151.0,0.000323,15]
[405351400,1771050640983,-500.0,0.00032328,2]
[405351401,1771050640992,-523.61,0.00032328,5]
[405351402,1771050641001,-669.29,0.00032328,5]
[405351403,1771050641010,-500.0,0.00032328,5]
[405351404,1771050641018,-500.0,0.00032328,5]
[405351405,1771050641027,-500.38,0.00032328,5]
[405351406,1771050641036,-2180.26,0.00032328,5]
[405351407,1771050641045,-41729.93245928,0.00032343,2]
[405351430,1771050646409,-250.0,0.00029835,2]
[405351431,1771050646420,-275.49807849,0.00029835,2]
[405351432,1771050646429,-38875.26868151,0.00032343,2]
[405351433,1771050646524,-27004.99840871,0.00032343,2]
[405351456,1771050739146,-300.0,0.00024648,2]
[405351457,1771050739177,-181.67809483,0.00024649,2]
[405351458,1771050739206,-306.78484234,0.00024649,2]
[405351459,1771050739236,-500.0,0.00024649,2]
[405351460,1771050739266,-500.0,0.00024649,2]
[405351461,1771050739294,-164.6395665,0.00024649,2]
[405351462,1771050739321,-460.08223247,0.00024649,2]
[405351463,1771050739350,-500.0,0.00024649,2]
[405351464,1771050766130,500.0,0.00024649,2]
[405351465,1771050766156,500.0,0.00024649,2]
[405351466,1771050766440,500.0,0.00024649,2]
[405351467,1771050766466,500.0,0.00024649,2]
[405351468,1771050766761,500.0,0.00024649,2]
[405351542,1771051832352,-3838.5620194,0.0002458,2]
[405351543,1771051832362,-786.4210086,0.0002458,2]
[405351567,1771051838550,-23.5789914,0.0002458,2]
[405351568,1771051838561,-150.0,0.00024767,2]
[405351569,1771051838571,-294.87201758,0.00026767,2]
[405351570,1771051838580,-992.85601113,0.000269,2]
[405351595,1771051847132,-207.14398887,0.000269,2]
[405351596,1771051847141,-692.0894114,0.00026901,2]
[405351597,1771051847150,-500.0,0.00027397,2]
[405351598,1771051847159,-500.0,0.00027596,7]
[405351599,1771051847168,-300.0,0.00028409,2]
[405351600,1771051847177,-300.0,0.00028409,2]
[405351601,1771051847187,-300.0,0.00028409,2]
[405351602,1771051847197,-300.0,0.00028409,2]
[405351603,1771051847207,-300.0,0.0002841,2]
[405351604,1771051847216,-33133.02659973,0.00028411,2]
[405351605,1771052334899,10000.0,0.00023,2]
[405351617,1771052943974,522.0,0.00030136,120]
[405351651,1771053037729,-336.00839522,0.00024953,2]
[405351657,1771053039869,-255.51909954,0.00024953,2]
[405351707,1771053924310,4408.47250524,0.00023,2]
[405351708,1771054030311,500.0,0.00013273,2]
[405351709,1771054030361,1500.0,0.00014368,2]
[405351710,1771054030418,1000.0,0.00013821,2]
[405351711,1771054030477,1380.90364492,0.00014916,2]
[405351712,1771054061677,5000.0,0.00023,2]
[405351713,1771054143845,500.0,0.00013273,2]
[405351714,1771054143878,466.46367224,0.00013821,2]
[405351720,1771054150470,172.9639704,0.00017196,2]
[405351721,1771054223700,427.71762635,0.00013273,2]
[405351722,1771054224894,500.0,0.00013273,2]
[405351723,1771054224952,1000.0,0.00013821,2]
[405351724,1771054225003,2500.0,0.00015464,2]
[405351725,1771054225056,1500.0,0.00014368,2]
[405351726,1771054225090,1046.48398893,0.00016012,2]
[405351727,1771054225158,2000.0,0.00014916,2]
[405351728,1771054226675,300.0,0.00013673,2]
[405351729,1771054226708,600.0,0.00014221,2]
[405351730,1771054226767,900.0,0.00014768,2]
[405351828,1771054237880,-705.0706451,0.00024544,2]
[405351829,1771054237890,-161.90312529,0.0002526,2]
[405351830,1771054237899,-290.5984346,0.00025625,2]
[405351831,1771054237910,-1046.92817953,0.000258,2]
[405351832,1771054237919,-4358.63791593,0.000258,2]
[405351833,1771054237929,-300.0,0.00025899,2]
[405351834,1771054237938,-300.0,0.00025899,2]
[405351835,1771054237947,-237.74907992,0.00025899,2]
[405351844,1771054240170,-62.25092008,0.00025899,2]
[405351845,1771054240179,-291.81336474,0.00025899,2]
[405351880,1771054295930,500.0,0.00013273,2]
[405351881,1771054295982,1500.0,0.00014368,2]
[405351882,1771054296034,1000.0,0.00013821,2]
[405351883,1771054296098,2000.0,0.00014916,2]
[405351884,1771054296158,2201.03217182,0.00015464,2]
[405351885,1771054327282,500.0,0.00013699,2]
[405351886,1771054327341,1000.0,0.00014247,2]
[405351887,1771054327393,1107.47987705,0.00014795,2]
[405351888,1771054327422,392.52012295,0.00014795,2]
[405351889,1771054327453,2000.0,0.00015342,2]
[405351890,1771054327502,1000.0,0.0001589,2]
[405351891,1771054328554,500.0,0.00013273,2]
[405351892,1771054328781,1000.0,0.00013821,2]
[405351893,1771054328829,2000.0,0.00014916,2]
[405351894,1771054328869,2500.0,0.00015464,2]
[405351895,1771054328924,528.73272409,0.00016012,2]
[405351896,1771054328995,78.74715296,0.00014368,2]
[405351897,1771054329021,1421.25284704,0.00014368,2]
[405351898,1771054330671,500.0,0.00013699,2]
[405351899,1771054330869,500.0,0.00014795,2]
[405351900,1771054330901,1000.0,0.00014247,2]
[405351901,1771054416454,-1375.74431102,0.00025384,2]
[405351902,1771054416489,-388.66220874,0.0002564,2]
[405351903,1771054416524,-908.18663526,0.00025899,2]
[405351904,1771054416559,-500.0,0.000259,2]
[405351905,1771054511780,500.0,0.00013699,2]
[405351906,1771054511810,505.41052532,0.00014795,2]